bitfinex/quotes_SOLUSD_20250204
["timestamp","ask_amount","ask_price","bid_price","bid_amount"]
[1738682760265,40.22351241,213.11,213.03,37.46641241]
[1738682760594,13.41184853,213.08,213.01,37.46641241]
[1738682760899,37.46641241,213.07,212.99,37.46641241]
[1738682761072,13.41184853,213.04,212.97,0.063]
[1738682761273,0.12549,213.06,212.97,37.52941241]
[1738682761274,13.53733853,213.06,212.97,37.52941241]
[1738682761485,37.46641241,213.01,212.97,0.063]
[1738682761685,37.46641241,212.99,212.97,0.063]
[1738682762060,38.34707076,212.99,212.97,0.063]
[1738682762298,38.34707076,212.99,212.85,37.52941241]
[1738682762299,0.12549,212.95,212.85,37.52941241]
[1738682762480,57.46641241,212.89,212.85,0.063]
[1738682762680,13.53733853,212.86,212.85,0.063]
[1738682762882,13.91380853,212.86,212.85,0.063]
[1738682763199,1.27765708,212.92,212.85,0.063]
[1738682763200,37.46641241,212.97,212.87,20.0]
[1738682763405,37.46641241,212.99,212.9,37.46641241]
[1738682763710,37.46641241,213.01,212.92,37.46641241]
[1738682763870,37.46641241,212.95,212.86,37.46641241]
[1738682764071,0.12549,212.93,212.86,37.46641241]
[1738682764310,37.59190241,212.91,212.85,0.063]
[1738682764503,51.38022094,212.86,212.85,0.063]
[1738682765070,51.38022094,212.86,212.75,0.063]
[1738682765071,20.0,212.84,212.75,0.063]
[1738682765269,37.46641241,212.81,212.75,0.063]
[1738682765475,37.46641241,212.83,212.75,0.063]
[1738682765694,37.46641241,212.81,212.75,0.063]
[1738682765893,13.41184853,212.76,212.75,0.063]
[1738682766091,13.53733853,212.76,212.75,0.063]
[1738682766265,13.91380853,212.76,212.75,0.063]
[1738682766900,13.53733853,212.72,212.61,37.46641241]
[1738682767067,37.46641241,212.71,212.63,37.46641241]
[1738682767401,37.46641241,212.65,212.54,7.26958371]
[1738682767601,37.46641241,212.57,212.54,7.26958371]
[1738682767770,37.46641241,212.55,212.54,7.26958371]
[1738682767970,51.00375094,212.55,212.54,7.26958371]
[1738682768202,51.38022094,212.55,212.54,7.26958371]
[1738682768401,13.91380853,212.54,212.48,0.063]
[1738682768604,2.03168125,212.57,212.48,0.063]
[1738682768605,13.41184853,212.51,212.48,0.063]
[1738682768771,51.38022094,212.49,212.48,0.063]
[1738682769172,37.46641241,212.51,212.48,0.063]
[1738682769477,51.38022094,212.49,212.48,0.063]
[1738682769669,37.46641241,212.51,212.48,0.063]
[1738682769899,37.46641241,212.53,212.48,0.063]
[1738682770095,37.46641241,212.49,212.48,0.063]
[1738682770269,37.46641241,212.51,212.48,0.063]
[1738682770603,0.88248152,212.57,212.48,37.52941241]
[1738682770604,37.46641241,212.57,212.48,37.52941241]
[1738682770980,37.46641241,212.63,212.54,37.46641241]
[1738682771486,37.46641241,212.63,212.48,0.063]
[1738682771487,37.46641241,212.59,212.5,37.46641241]
[1738682771802,37.46641241,212.57,212.5,37.46641241]
[1738682772008,37.46641241,212.61,212.52,37.46641241]
[1738682772297,37.46641241,212.59,212.5,37.46641241]
[1738682772475,37.46641241,212.57,212.48,37.52941241]
[1738682772901,37.46641241,212.59,212.5,37.46641241]
[1738682773130,37.46641241,212.63,212.54,37.46641241]
[1738682773278,37.46641241,212.65,212.56,37.46641241]
[1738682773483,37.46641241,212.63,212.54,37.46641241]
[1738682773680,37.46641241,212.61,212.52,37.46641241]
[1738682773907,37.46641241,212.67,212.58,37.46641241]
[1738682774286,37.46641241,212.69,212.6,37.46641241]
[1738682774685,37.46641241,212.73,212.64,37.46641241]
[1738682775009,37.46641241,212.75,212.66,37.46641241]
[1738682775175,37.46641241,212.73,212.64,37.46641241]
[1738682775381,37.46641241,212.71,212.62,37.46641241]
[1738682775605,37.46641241,212.75,212.66,37.46641241]
[1738682775795,37.46641241,212.73,212.64,37.46641241]
[1738682775980,37.46641241,212.75,212.66,37.46641241]
[1738682776182,50.87826094,212.77,212.68,37.46641241]
[1738682776380,37.46641241,212.77,212.68,21.14656401]
[1738682776616,37.46641241,212.85,212.76,37.46641241]
[1738682776837,37.46641241,212.87,212.78,37.46641241]
[1738682777015,37.46641241,212.85,212.76,37.46641241]
[1738682777216,37.46641241,212.83,212.74,37.46641241]
[1738682777581,37.46641241,212.85,212.76,37.46641241]
[1738682778187,37.46641241,212.81,212.72,37.46641241]
[1738682778386,37.46641241,212.83,212.74,37.46641241]
[1738682778624,37.46641241,212.85,212.76,37.46641241]
[1738682778916,37.46641241,212.93,212.84,37.46641241]
[1738682779099,37.46641241,212.96,212.87,37.46641241]
[1738682779295,37.46641241,212.98,212.89,37.46641241]
[1738682779699,37.46641241,213.02,212.93,37.46641241]
[1738682779907,37.46641241,213.04,212.95,37.46641241]
[1738682780092,37.46641241,213.06,212.97,37.46641241]
[1738682780414,20.78295937,213.09,212.99,37.46641241]
[1738682780415,37.46641241,213.08,212.99,37.46641241]
[1738682780622,37.46641241,213.06,212.97,37.46641241]
[1738682780806,37.46641241,213.08,212.99,37.46641241]
[1738682781003,14.40295937,213.09,213.03,37.46641241]
[1738682781226,14.40295937,213.09,213.06,20.0]
[1738682781392,14.40295937,213.09,212.98,1.0]
[1738682781393,14.40295937,213.09,213.05,37.46641241]
[1738682781592,14.40295937,213.09,213.07,20.0]
[1738682782020,37.46641241,213.12,213.07,20.0]
[1738682782321,0.03,213.14,212.96,38.46641241]
[1738682782322,13.44184853,213.06,212.96,37.46641241]
[1738682782521,0.03,213.06,213.01,37.46641241]
[1738682782719,37.46641241,213.05,212.97,37.46641241]
[1738682782903,37.46641241,213.03,212.95,37.46641241]
[1738682783515,37.46641241,213.02,212.95,37.46641241]
[1738682783719,37.46641241,213.02,212.93,37.46641241]
[1738682783898,37.49641241,213.06,212.97,37.46641241]
[1738682784106,0.03,213.06,212.99,37.46641241]
[1738682784302,37.46641241,213.05,212.97,37.46641241]
[1738682784513,0.03,213.06,213.0,37.46641241]
[1738682784712,0.03,213.06,213.04,37.46641241]
[1738682786223,37.49641241,213.06,212.97,37.46641241]
[1738682786546,37.46641241,213.01,212.93,37.46641241]
[1738682786706,37.46641241,213.03,212.95,37.46641241]
[1738682787216,37.46641241,213.01,212.96,20.0]
[1738682787423,37.46641241,213.05,212.96,20.0]
[1738682787594,0.03,213.06,213.01,37.46641241]
[1738682788319,0.03,213.06,212.93,37.46641241]
[1738682788320,37.46641241,213.03,212.93,37.46641241]
[1738682788504,37.46641241,213.01,212.93,37.46641241]
[1738682788702,13.53733853,213.0,212.91,37.46641241]
[1738682788925,37.46641241,212.99,212.94,20.0]
[1738682789115,13.91380853,212.98,212.89,37.46641241]
[1738682789303,51.00375094,212.99,212.89,37.46641241]
[1738682789712,13.53733853,212.94,212.85,37.46641241]
[1738682789908,37.46641241,212.91,212.83,37.46641241]
[1738682790126,13.53733853,212.9,212.83,37.46641241]
[1738682790338,37.46641241,212.85,212.78,37.46641241]
[1738682790630,37.46641241,212.93,212.84,37.46641241]
[1738682790806,37.46641241,212.91,212.82,37.46641241]
[1738682791002,37.46641241,212.87,212.78,37.46641241]
[1738682791241,38.46641241,213.07,212.85,37.46641241]
[1738682791398,37.46641241,212.93,212.85,37.46641241]
[1738682791607,37.46641241,212.95,212.85,37.46641241]
[1738682791905,13.53733853,212.94,212.85,37.46641241]
[1738682792123,37.46641241,212.93,212.85,37.46641241]
[1738682792299,13.53733853,212.9,212.81,37.46641241]
[1738682792623,37.46641241,212.89,212.84,20.0]
[1738682792932,37.46641241,212.89,212.81,37.46641241]
[1738682793134,37.46641241,212.93,212.84,20.0]
[1738682793301,1.0,213.03,212.89,37.46641241]
[1738682793302,37.46641241,212.97,212.89,37.46641241]
[1738682793508,37.46641241,212.99,212.89,37.46641241]
[1738682793722,37.46641241,212.99,212.91,37.46641241]
[1738682793932,13.53733853,213.0,212.91,37.46641241]
[1738682794244,0.03,212.95,212.93,37.46641241]
[1738682794732,0.03,212.95,212.94,0.12549]
[1738682794936,0.03,212.95,212.94,0.37647]
[1738682795305,0.03,212.95,212.93,37.46641241]
[1738682796827,0.03,212.95,212.94,0.50196]
[1738682797011,0.03,212.95,212.94,0.37647]
[1738682797215,0.03,212.95,212.93,37.46641241]
[1738682797518,0.03,212.95,212.89,37.46641241]
[1738682797715,0.03,212.95,212.93,37.46641241]
[1738682800210,0.03,212.95,212.91,37.46641241]
[1738682800441,0.03,212.95,212.89,37.46641241]
[1738682800742,0.03,212.95,212.78,1.0]
[1738682800743,0.03,212.95,212.87,37.46641241]
[1738682800957,0.03,212.95,212.9,20.0]
[1738682801245,0.03,212.95,212.94,0.25098]
[1738682801552,0.03,212.95,212.93,37.46641241]
[1738682801750,0.03,212.95,212.94,0.25098]
[1738682802119,0.03,212.95,212.93,37.46641241]
[1738682802818,0.03,212.95,212.91,37.46641241]
[1738682803019,0.03,212.95,212.93,37.46641241]
[1738682803619,0.03,212.95,212.94,51.38022094]
[1738682804146,0.03,213.14,212.97,33.91380853]
[1738682804453,0.03,213.14,213.05,76.30929482]
[1738682804661,0.03,213.14,213.05,89.84663335]
[1738682804866,0.03,213.14,213.13,37.46641241]
[1738682805152,0.03,213.28,213.19,1.0]
[1738682805318,0.03,213.28,213.27,37.46641241]
[1738682806545,0.03,213.28,213.22,37.46641241]
[1738682806750,0.03,213.28,213.2,37.46641241]
[1738682807046,0.03,213.28,213.07,41.19251241]
[1738682807047,0.03,213.28,213.23,20.0]
[1738682807256,0.03,213.28,213.22,37.46641241]
[1738682807549,0.03,213.28,213.26,37.46641241]
[1738682807746,0.03,213.28,213.27,37.84288241]
[1738682807966,0.03,213.28,213.27,51.38022094]
[1738682808449,37.46641241,213.49,213.38,37.46641241]
[1738682808820,37.46641241,213.49,213.4,37.46641241]
[1738682809023,4.6828,213.55,213.32,1.0]
[1738682809223,4.6828,213.55,213.29,37.46641241]
[1738682809224,37.46641241,213.55,213.47,37.46641241]
[1738682809965,37.46641241,213.55,213.45,37.46641241]
[1738682810136,0.37647,213.52,213.43,37.46641241]
[1738682810335,37.46641241,213.53,213.43,37.46641241]
[1738682810755,37.46641241,213.53,213.45,37.46641241]
[1738682811061,13.53733853,213.5,213.41,37.46641241]
[1738682811359,37.46641241,213.51,213.29,37.46641241]
[1738682811360,37.46641241,213.55,213.45,37.46641241]
[1738682811528,37.46641241,213.57,213.48,37.46641241]
[1738682811927,13.78831853,213.56,213.48,37.46641241]
[1738682812128,13.78831853,213.56,213.4,37.71739241]
[1738682812129,13.41184853,213.53,213.44,37.46641241]
[1738682812347,0.12549,213.52,213.44,37.46641241]
[1738682812535,37.46641241,213.53,213.44,37.46641241]
[1738682812749,37.46641241,213.53,213.42,57.46641241]
[1738682812750,38.34472675,213.53,213.42,57.46641241]
[1738682812928,37.46641241,213.51,213.42,57.46641241]
[1738682813125,37.46641241,213.47,213.39,7.20147968]
[1738682813335,13.53733853,213.44,213.39,7.20147968]
[1738682813573,0.25098,213.43,213.39,7.20147968]
[1738682813730,0.25098,213.43,213.34,66.27233116]
[1738682813731,37.46641241,213.43,213.34,37.46641241]
[1738682813939,37.46641241,213.49,213.4,37.46641241]
[1738682814262,37.46641241,213.51,213.42,37.46641241]
[1738682814435,37.46641241,213.53,213.44,37.46641241]
[1738682814839,13.41184853,213.52,213.44,37.46641241]
[1738682815245,37.46641241,213.55,213.46,37.46641241]
[1738682815444,37.46641241,213.53,213.44,37.46641241]
[1738682816131,13.41184853,213.5,213.42,37.46641241]
[1738682816347,37.46641241,213.51,213.42,37.46641241]
[1738682816536,1.12942742,213.54,213.29,38.46641241]
[1738682816537,37.46641241,213.47,213.38,37.46641241]
[1738682816734,37.46641241,213.43,213.34,37.46641241]
[1738682817140,37.46641241,213.47,213.38,37.46641241]
[1738682817651,13.53733853,213.46,213.38,37.46641241]
[1738682817860,37.46641241,213.45,213.36,37.46641241]
[1738682818055,37.46641241,213.5,213.41,37.46641241]
[1738682819049,13.53733853,213.49,213.39,37.46641241]
[1738682819230,37.46641241,213.48,213.39,37.46641241]
[1738682819434,13.53733853,213.49,213.39,37.46641241]
[1738682819647,37.46641241,213.5,213.37,0.12549]
[1738682819962,0.03,213.51,213.45,37.46641241]
[1738682820341,37.46641241,213.5,213.41,37.46641241]
[1738682820871,37.46641241,213.5,213.29,38.46641241]
[1738682820872,37.46641241,213.46,213.38,37.46641241]
[1738682821048,37.46641241,213.48,213.38,37.46641241]
[1738682821255,0.03,213.51,213.44,37.46641241]
[1738682821570,0.03,213.51,213.48,37.46641241]
[1738682821760,0.03,213.51,213.47,20.0]
[1738682822137,0.03,213.51,213.46,37.46641241]
[1738682822338,0.03,213.51,213.5,37.46641241]
[1738682823845,0.03,213.51,213.48,37.46641241]
[1738682824241,0.03,213.51,213.5,20.0]
[1738682824771,0.03,213.51,213.44,0.25098]
[1738682824772,0.03,213.51,213.44,37.46641241]
[1738682824938,37.46641241,213.47,213.38,37.46641241]
[1738682825135,37.49641241,213.51,213.42,37.46641241]
[1738682825339,0.03,213.51,213.44,37.46641241]
[1738682825541,0.03,213.51,213.42,37.46641241]
[1738682825542,37.49641241,213.51,213.42,37.46641241]
[1738682825745,13.41184853,213.48,213.4,37.46641241]
[1738682826045,37.46641241,213.47,213.4,37.46641241]
[1738682826258,37.49641241,213.51,213.44,37.46641241]
[1738682826467,13.41184853,213.5,213.42,37.46641241]
[1738682826648,13.41184853,213.48,213.4,37.46641241]
[1738682826849,37.46641241,213.45,213.36,37.46641241]
[1738682827078,13.41184853,213.44,213.36,37.46641241]
[1738682828169,0.12549,213.47,213.39,37.46641241]
[1738682828170,37.59190241,213.47,213.39,37.46641241]
[1738682828344,13.9207,213.51,213.45,37.46641241]
[1738682828543,2.9269,213.51,213.45,37.46641241]
[1738682828886,2.9269,213.51,213.37,0.25098]
[1738682828887,37.49641241,213.51,213.43,37.46641241]
[1738682829048,37.46641241,213.49,213.41,37.46641241]
[1738682829249,13.41184853,213.46,213.37,37.46641241]
[1738682829497,37.46641241,213.45,213.37,37.46641241]
[1738682829663,37.59190241,213.47,213.37,37.46641241]
[1738682829981,37.46641241,213.43,213.35,37.46641241]
[1738682830165,37.46641241,213.41,213.33,37.46641241]
[1738682830665,13.41184853,213.4,213.33,37.46641241]
[1738682830872,13.41184853,213.4,213.31,37.46641241]
[1738682831048,13.41184853,213.4,213.33,37.46641241]
[1738682831248,13.41184853,213.4,213.31,37.46641241]
[1738682831450,13.41184853,213.38,213.31,37.46641241]
[1738682831766,13.41184853,213.32,213.28,0.063]
[1738682831967,37.46641241,213.31,213.28,0.063]
[1738682832170,0.37647,213.31,213.28,0.063]
[1738682832375,37.46641241,213.33,213.28,0.063]
[1738682832376,37.46641241,213.29,213.28,0.063]
[1738682832565,51.25473094,213.29,213.28,0.063]
[1738682832880,51.25473094,213.29,213.15,37.46641241]
[1738682832881,0.12549,213.27,213.15,37.46641241]
[1738682833051,37.46641241,213.24,213.15,37.46641241]
[1738682833254,13.53733853,213.21,213.13,37.46641241]
[1738682833478,37.46641241,213.15,213.06,56.29443241]
[1738682833780,37.46641241,213.15,213.06,37.52941241]
[1738682833996,37.46641241,213.13,213.07,20.0]
[1738682834154,13.41184853,213.12,213.07,20.0]
[1738682834481,13.41184853,213.11,213.06,0.063]
[1738682834889,0.37647,213.07,213.06,0.063]
[1738682835182,14.79406792,213.07,213.06,0.063]
[1738682835377,51.38022094,212.99,212.86,37.46641241]
[1738682835594,51.38022094,212.99,212.88,37.46641241]
[1738682835762,37.46641241,213.01,212.92,37.46641241]
[1738682836171,37.84288241,212.99,212.88,37.46641241]
[1738682836482,20.0,212.96,212.84,37.46641241]
[1738682836670,37.46641241,212.9,212.82,37.46641241]
[1738682836856,37.46641241,212.88,212.8,37.46641241]
[1738682837061,37.46641241,212.9,212.82,37.46641241]
[1738682837279,1.0,212.97,212.88,37.46641241]
[1738682837280,37.46641241,212.96,212.88,37.46641241]
[1738682837484,37.46641241,212.96,212.86,37.46641241]
[1738682837670,13.78831853,212.93,212.84,37.46641241]
[1738682837870,37.46641241,212.92,212.84,37.46641241]
[1738682838188,37.46641241,213.0,212.9,37.46641241]
[1738682838384,37.46641241,213.02,212.95,37.46641241]
[1738682838685,37.46641241,212.96,212.86,37.46641241]
[1738682838889,37.46641241,212.94,212.86,37.46641241]
[1738682839272,37.46641241,212.92,212.84,37.46641241]
[1738682839464,37.46641241,212.9,212.82,37.46641241]
[1738682839995,13.41184853,212.84,212.76,37.46641241]
[1738682840154,13.41184853,212.84,212.68,0.063]
[1738682840155,0.12549,212.83,212.74,37.46641241]
[1738682840359,37.46641241,212.86,212.77,20.0]
[1738682840594,37.46641241,212.86,212.78,37.46641241]
[1738682840988,37.46641241,212.9,212.8,37.46641241]
[1738682841366,37.46641241,212.92,212.82,37.46641241]
[1738682841560,37.46641241,212.92,212.84,37.46641241]
[1738682841873,37.46641241,212.94,212.86,37.46641241]
[1738682842076,37.46641241,212.98,212.9,37.46641241]
[1738682842272,37.59190241,213.0,212.9,37.46641241]
[1738682842474,0.12549,213.01,212.92,37.46641241]
[1738682842678,2.919,213.03,212.96,37.46641241]
[1738682842863,37.46641241,213.04,212.96,37.46641241]
[1738682843061,37.46641241,213.06,212.96,37.46641241]
[1738682843279,13.53733853,213.02,212.94,37.46641241]
[1738682843473,0.12549,213.02,212.94,37.46641241]
[1738682843665,13.41184853,213.01,212.94,37.46641241]
[1738682843868,0.03,212.98,212.94,37.46641241]
[1738682844096,0.03,212.98,212.9,37.46641241]
[1738682844421,0.03,212.98,212.82,1.0]
[1738682844422,0.03,212.98,212.94,37.46641241]
[1738682844868,0.03,212.98,212.96,37.46641241]
[1738682845792,0.03,212.98,212.97,0.25098]
[1738682846097,0.03,212.98,212.97,0.50196]
[1738682846268,0.03,212.98,212.97,14.91380853]
[1738682846590,37.46641241,213.17,213.05,20.0]
[1738682846885,37.46641241,213.13,213.04,37.46641241]
[1738682847085,37.46641241,213.15,213.06,37.46641241]
[1738682847264,50.87826094,213.17,213.08,37.46641241]
[1738682847465,0.12549,213.16,213.08,37.46641241]
[1738682847866,0.12549,213.08,213.0,37.46641241]
[1738682848186,37.46641241,213.11,213.02,37.46641241]
[1738682848391,37.46641241,213.15,213.08,37.46641241]
[1738682848591,37.46641241,213.17,213.08,37.46641241]
[1738682848795,13.53733853,213.16,213.08,37.46641241]
[1738682848965,13.53733853,213.14,213.06,37.46641241]
[1738682849168,13.53733853,213.12,213.04,37.46641241]
[1738682849366,37.46641241,213.15,213.06,37.46641241]
[1738682849683,37.46641241,213.13,213.04,37.46641241]
[1738682849879,13.41184853,213.12,213.04,37.46641241]
[1738682850394,37.59190241,213.15,213.06,37.46641241]
[1738682850594,0.12549,213.15,213.08,37.46641241]
[1738682850782,13.53733853,213.12,213.04,37.46641241]
[1738682851276,37.46641241,213.13,213.0,37.46641241]
[1738682851277,37.46641241,213.09,213.0,37.46641241]
[1738682851477,0.50196,213.03,212.96,37.46641241]
[1738682851669,37.46641241,212.99,212.9,37.46641241]
[1738682851871,37.46641241,213.03,212.94,37.46641241]
[1738682852079,13.41184853,213.0,212.94,37.46641241]
[1738682852397,37.46641241,213.03,212.94,37.46641241]
[1738682852600,13.41184853,213.02,212.94,37.46641241]
[1738682852771,0.12549,213.01,212.94,37.46641241]
[1738682853164,0.37647,212.99,212.92,37.46641241]
[1738682853371,13.41184853,212.94,212.86,37.46641241]
[1738682853670,37.46641241,212.91,212.84,37.46641241]
[1738682853878,37.46641241,212.95,212.86,37.46641241]
[1738682854181,37.46641241,212.99,212.9,37.46641241]
[1738682854498,37.46641241,212.95,212.86,37.46641241]
[1738682854806,37.46641241,212.92,212.82,37.46641241]
[1738682855092,13.53733853,212.91,212.85,20.0]
[1738682855592,37.84288241,212.86,212.78,37.52941241]
[1738682855791,37.46641241,212.82,212.78,0.063]
[1738682855979,13.53733853,212.81,212.78,0.063]
[1738682856178,13.53733853,212.79,212.78,0.063]
[1738682856381,13.91380853,212.79,212.78,0.063]
[1738682857203,14.79530249,212.79,212.78,0.063]
[1738682857573,0.37647,212.73,212.72,0.063]
[1738682857795,51.25473094,212.73,212.72,0.063]
[1738682858094,51.12924094,212.73,212.72,0.063]
[1738682858299,50.87826094,212.73,212.72,0.063]
[1738682858484,51.38022094,212.73,212.72,0.063]
[1738682858669,51.00375094,212.73,212.72,0.063]
[1738682858874,37.46641241,212.79,212.72,0.063]
[1738682859081,37.46641241,212.83,212.74,37.46641241]
[1738682859394,13.91380853,212.82,212.74,37.46641241]
[1738682859696,37.46641241,212.79,212.72,0.063]
[1738682859900,37.46641241,212.81,212.73,20.0]
[1738682860077,37.46641241,212.81,212.72,37.52941241]
[1738682860078,37.46641241,212.84,212.76,37.46641241]
[1738682860273,37.46641241,212.88,212.78,37.46641241]
[1738682860479,13.53733853,212.83,212.76,37.46641241]
[1738682860681,0.88122447,212.93,212.81,20.0]
[1738682860992,37.46641241,212.94,212.84,37.46641241]
[1738682861200,37.46641241,212.94,212.81,20.0]
[1738682861201,37.46641241,212.96,212.86,37.46641241]
[1738682861409,2.7804,212.97,212.88,37.46641241]
[1738682861576,37.46641241,213.0,212.92,37.46641241]
[1738682861776,13.78831853,212.99,212.92,37.46641241]
[1738682862103,0.12549,212.99,212.9,37.46641241]
[1738682862409,0.12549,212.99,212.79,1.0]
[1738682862410,13.78831853,212.93,212.84,37.46641241]
[1738682862584,0.12549,212.9,212.84,37.46641241]
[1738682862972,0.8806073,212.99,212.86,37.46641241]
[1738682863218,37.46641241,213.02,212.92,37.46641241]
[1738682863388,37.46641241,213.02,212.94,37.46641241]
[1738682863682,0.12549,213.01,212.94,37.46641241]
[1738682863887,0.12549,213.04,212.94,37.46641241]
[1738682864093,37.59190241,213.04,212.94,37.46641241]
[1738682864282,37.46641241,213.02,212.94,37.46641241]
[1738682864513,13.53733853,213.01,212.94,37.46641241]
[1738682865089,51.17471241,213.08,212.98,37.46641241]
[1738682865304,38.34682346,213.1,213.0,37.46641241]
[1738682865507,37.46641241,213.14,213.04,37.46641241]
[1738682865691,37.46641241,213.14,213.06,37.46641241]
[1738682866087,37.46641241,213.18,213.08,37.46641241]
[1738682866406,37.46641241,213.16,213.06,37.46641241]
[1738682866731,13.66282853,213.15,213.08,37.46641241]
[1738682867015,13.53733853,213.15,213.06,37.46641241]
[1738682867216,37.46641241,213.1,213.02,37.46641241]
[1738682867391,37.46641241,213.08,212.98,37.46641241]
[1738682867590,13.41184853,213.03,212.96,37.46641241]
[1738682867992,37.46641241,213.08,213.02,37.46641241]
[1738682868220,37.46641241,213.11,213.02,37.46641241]
[1738682868422,13.53733853,213.08,213.02,37.46641241]
[1738682869030,37.46641241,213.09,213.0,37.46641241]
[1738682869189,42.15921241,213.09,213.0,37.46641241]
[1738682869514,37.46641241,213.05,212.99,20.0]
[1738682869705,37.46641241,213.05,212.98,37.46641241]
[1738682869907,13.41184853,213.01,212.92,0.063]
[1738682870217,37.46641241,213.05,212.96,37.46641241]
[1738682870510,0.25098,213.07,213.0,37.46641241]
[1738682870719,13.41184853,213.0,212.92,0.063]
[1738682870901,37.46641241,212.99,212.92,0.063]
[1738682871091,13.78831853,212.96,212.92,0.063]
[1738682871288,51.00375094,212.93,212.92,0.063]
[1738682871517,37.46641241,212.95,212.92,0.063]
[1738682871693,51.38022094,212.93,212.92,0.063]
[1738682871895,13.53733853,212.93,212.92,0.063]
[1738682872198,37.46641241,212.97,212.92,0.063]
[1738682872498,51.38022094,212.93,212.92,0.063]
[1738682873224,56.07652094,212.93,212.92,0.063]
[1738682873423,51.38022094,212.93,212.92,0.063]
[1738682873920,13.53733853,212.93,212.92,0.063]
[1738682874293,13.41184853,212.93,212.92,0.063]
[1738682874695,0.12549,212.87,212.72,37.52941241]
[1738682874922,37.46641241,212.8,212.72,37.52941241]
[1738682875122,37.46641241,212.79,212.72,0.063]
[1738682875313,37.46641241,212.88,212.79,20.0]
[1738682875512,37.46641241,212.9,212.8,37.46641241]
[1738682875713,37.46641241,212.88,212.8,37.46641241]
[1738682875904,13.41184853,212.85,212.78,37.46641241]
[1738682876111,37.46641241,212.9,212.82,37.46641241]
[1738682876320,37.46641241,212.92,212.84,37.46641241]
[1738682876501,37.46641241,212.9,212.82,37.46641241]
[1738682876694,13.41184853,212.87,212.83,20.0]
[1738682876996,0.12549,212.86,212.78,37.46641241]
[1738682877200,13.41184853,212.87,212.78,37.46641241]
[1738682877407,37.59190241,212.92,212.84,37.46641241]
[1738682877612,37.46641241,212.92,212.84,37.46641241]
[1738682878026,37.46641241,212.93,212.84,37.46641241]
[1738682878324,37.46641241,212.93,212.87,20.0]
[1738682878496,37.46641241,212.99,212.9,37.46641241]
[1738682879118,37.46641241,213.01,212.92,37.46641241]
[1738682879426,13.91380853,213.02,212.95,20.0]
[1738682879934,13.41184853,213.0,212.95,20.0]
[1738682880101,13.41184853,213.0,212.94,37.46641241]
[1738682880501,38.34678532,213.1,212.99,37.46641241]
[1738682880718,4.6922,213.12,212.96,37.46641241]
[1738682880719,37.46641241,213.12,213.03,37.46641241]
[1738682881224,0.12549,213.05,212.87,1.0]
[1738682881438,37.46641241,213.04,212.95,37.46641241]
[1738682881612,37.59190241,213.02,212.93,37.46641241]
[1738682881944,13.41184853,212.99,212.91,37.46641241]
[1738682882103,13.41184853,212.99,212.81,11.8202]
[1738682882104,37.46641241,212.96,212.87,37.46641241]
[1738682882310,37.46641241,213.02,212.93,37.46641241]
[1738682882831,25.8293,213.15,213.0,20.0]
[1738682882832,37.46641241,213.08,213.0,20.0]
[1738682883028,37.46641241,213.1,213.01,37.46641241]
[1738682883202,37.46641241,213.08,213.02,20.0]
[1738682883634,0.12549,213.04,213.0,20.0]
[1738682883931,37.46641241,213.04,213.0,20.0]
[1738682884139,13.41184853,213.05,213.0,20.0]
[1738682884621,37.46641241,213.12,213.04,20.0]
[1738682884921,0.03,213.15,213.1,20.0]
[1738682885302,0.03,213.15,213.11,37.46641241]
[1738682885620,0.03,213.15,213.1,20.0]
[1738682885621,0.03,213.15,213.14,20.0]
[1738682885833,0.03,213.15,213.13,37.46641241]
[1738682886329,0.03,213.15,213.14,0.50196]
[1738682886734,0.03,213.25,213.18,0.12549]
[1738682886916,0.03,213.25,213.24,37.46641241]
[1738682887230,0.03,213.25,213.24,52.25473094]
[1738682887535,0.03,213.37,213.3,20.0]
[1738682887731,0.03,213.37,213.35,37.46641241]
[1738682888120,0.03,213.37,213.36,20.0]
[1738682888317,0.03,213.37,213.29,37.46641241]
[1738682888638,37.46641241,213.35,213.27,37.46641241]
[1738682888934,0.03,213.37,213.32,37.46641241]
[1738682889233,50.90826094,213.37,213.28,37.46641241]
[1738682889428,0.03,213.37,213.32,37.46641241]
[1738682889632,0.03,213.37,213.36,57.46641241]
[1738682889811,0.03,213.37,213.36,20.0]
[1738682890013,37.62190241,213.37,213.28,37.46641241]
[1738682890212,13.41184853,213.36,213.28,37.46641241]
[1738682890438,13.41184853,213.36,213.31,20.0]
[1738682890734,13.41184853,213.34,213.26,37.46641241]
[1738682890922,13.41184853,213.3,213.22,37.46641241]